[Event "Late-Titled-Tuesday-Blitz-April-30-2024"]
[Site "Chess.com"]
[Date "2024.04.30"]
[Round "4"]
[White "whiteglovethief"]
[Black "dasatcu90"]
[Result "0-1"]
[WhiteElo "2484"]
[BlackElo "2235"]
[TimeControl "180+1"]
[EndTime "14:40:13 PDT"]
[Termination "dasatcu90 won by resignation"]

1. d4 {[%clk 0:03:00.9]} 1... d5 {[%clk 0:02:59.1]} 2. c4 {[%clk 0:03:00.3]}
2... c6 {[%clk 0:02:59.6]} 3. Nf3 {[%clk 0:02:59.3]} 3... Nf6 {[%clk 0:02:59.8]}
4. Nc3 {[%clk 0:02:58.7]} 4... a6 {[%clk 0:03:00.4]} 5. e3 {[%clk 0:02:57.4]}
5... b5 {[%clk 0:03:00.1]} 6. b3 {[%clk 0:02:55.1]} 6... Bg4 {[%clk 0:02:57.8]}
7. Qc2 {[%clk 0:02:51]} 7... Bxf3 {[%clk 0:02:56.9]} 8. gxf3 {[%clk 0:02:50.6]}
8... e6 {[%clk 0:02:56.2]} 9. Bd2 {[%clk 0:02:49.4]} 9... Nbd7 {[%clk
0:02:52.5]} 10. c5 {[%clk 0:02:45.5]} 10... e5 {[%clk 0:02:49.1]} 11. Be2 {[%clk
0:02:44]} 11... exd4 {[%clk 0:02:49.1]} 12. exd4 {[%clk 0:02:43.9]} 12... g6
{[%clk 0:02:48]} 13. O-O-O {[%clk 0:02:41.4]} 13... Bg7 {[%clk 0:02:46]} 14. Bd3
{[%clk 0:02:41.5]} 14... O-O {[%clk 0:02:36.5]} 15. h4 {[%clk 0:02:41.8]} 15...
Nh5 {[%clk 0:02:33.5]} 16. Rdg1 {[%clk 0:02:37.7]} 16... Bxd4 {[%clk 0:02:18]}
17. Bh6 {[%clk 0:02:31.3]} 17... Re8 {[%clk 0:02:04.1]} 18. Ne2 {[%clk
0:02:23.1]} 18... Bf6 {[%clk 0:01:16.8]} 19. Ng3 {[%clk 0:02:20.2]} 19... Ng7
{[%clk 0:01:08]} 20. h5 {[%clk 0:02:16.4]} 20... Ne5 {[%clk 0:01:06.2]} 21. hxg6
{[%clk 0:02:12.7]} 21... Nxd3+ {[%clk 0:01:05.4]} 22. Qxd3 {[%clk 0:02:10.6]}
22... fxg6 {[%clk 0:01:05]} 23. Bxg7 {[%clk 0:01:56.2]} 23... Bxg7 {[%clk
0:01:04.5]} 24. f4 {[%clk 0:01:40.2]} 24... Qf6 {[%clk 0:01:04]} 25. Qc2 {[%clk
0:01:28.2]} 25... Qxf4+ {[%clk 0:00:55.2]} 26. Kb1 {[%clk 0:01:23.7]} 26... Qf6
{[%clk 0:00:48.9]} 27. Kc1 {[%clk 0:01:23.9]} 27... Qf4+ {[%clk 0:00:28.7]} 28.
Kb1 {[%clk 0:01:22.9]} 28... Qd4 {[%clk 0:00:29.3]} 29. Kc1 {[%clk 0:01:21.4]}
29... Rf8 {[%clk 0:00:28.6]} 30. Rg2 {[%clk 0:01:13.8]} 30... Rf3 {[%clk
0:00:21.7]} 31. Ne2 {[%clk 0:01:08.9]} 31... Qa1+ {[%clk 0:00:20.2]} 32. Qb1
{[%clk 0:01:08]} 32... Qxb1+ {[%clk 0:00:18]} 33. Kxb1 {[%clk 0:01:07.6]} 33...
Raf8 {[%clk 0:00:18.3]} 34. Rf1 {[%clk 0:01:04.9]} 34... Be5 {[%clk 0:00:16.4]}
35. Kc2 {[%clk 0:01:02.4]} 35... Kg7 {[%clk 0:00:16.3]} 36. Nc1 {[%clk
0:01:02.4]} 36... Bd4 {[%clk 0:00:15.6]} 37. Nd3 {[%clk 0:01:02.6]} 37... h5
{[%clk 0:00:14]} 38. Nb4 {[%clk 0:01:00.4]} 38... Rxf2+ {[%clk 0:00:11.4]} 39.
Rfxf2 {[%clk 0:01:00.3]} 39... Rxf2+ {[%clk 0:00:12.2]} 40. Rxf2 {[%clk
0:01:00.2]} 40... Bxf2 {[%clk 0:00:13.1]} 41. Nxa6 {[%clk 0:01:00.1]} 41... h4
{[%clk 0:00:12.7]} 42. Nc7 {[%clk 0:00:58.2]} 42... h3 {[%clk 0:00:12.8]} 43.
Ne6+ {[%clk 0:00:56.3]} 43... Kg8 {[%clk 0:00:11.1]} 0-1

[Event "Late-Titled-Tuesday-Blitz-April-30-2024"]
[Site "Chess.com"]
[Date "2024.04.30"]
[Round "4"]
[White "JaackCamel"]
[Black "maurovargas01"]
[Result "1-0"]
[WhiteElo "2262"]
[BlackElo "1957"]
[TimeControl "180+1"]
[EndTime "14:40:14 PDT"]
[Termination "JaackCamel won on time"]

1. d4 {[%clk 0:03:00.9]} 1... d5 {[%clk 0:02:57.4]} 2. c4 {[%clk 0:03:00.3]}
2... e6 {[%clk 0:02:52.2]} 3. Nc3 {[%clk 0:02:59.9]} 3... c6 {[%clk 0:02:51.6]}
4. e4 {[%clk 0:02:58.9]} 4... dxc4 {[%clk 0:02:51]} 5. Bxc4 {[%clk 0:02:56.9]}
5... Nf6 {[%clk 0:02:05.1]} 6. Nf3 {[%clk 0:02:55.3]} 6... Bb4 {[%clk
0:01:32.6]} 7. Qe2 {[%clk 0:02:50.5]} 7... b5 {[%clk 0:01:30.2]} 8. Bd3 {[%clk
0:02:44.8]} 8... Bb7 {[%clk 0:01:29.7]} 9. O-O {[%clk 0:02:44.1]} 9... Nbd7
{[%clk 0:01:18.6]} 10. Bg5 {[%clk 0:02:38.5]} 10... h6 {[%clk 0:01:11.3]} 11.
Bh4 {[%clk 0:02:37.9]} 11... g5 {[%clk 0:01:09]} 12. Bg3 {[%clk 0:02:35.5]}
12... Ba5 {[%clk 0:01:08.3]} 13. d5 {[%clk 0:02:29.5]} 13... cxd5 {[%clk
0:01:02.4]} 14. exd5 {[%clk 0:02:29.3]} 14... O-O {[%clk 0:00:58.3]} 15. dxe6
{[%clk 0:02:26.2]} 15... fxe6 {[%clk 0:00:56.9]} 16. Qxe6+ {[%clk 0:02:23.9]}
16... Kg7 {[%clk 0:00:56.5]} 17. Qf5 {[%clk 0:02:15.5]} 17... b4 {[%clk
0:00:52.2]} 18. Qg6+ {[%clk 0:02:13.3]} 18... Kh8 {[%clk 0:00:49]} 19. Qxh6+
{[%clk 0:01:59.5]} 19... Kg8 {[%clk 0:00:48.1]} 20. Qxg5+ {[%clk 0:01:58.5]}
20... Kf7 {[%clk 0:00:46.3]} 21. Qg6+ {[%clk 0:01:40.2]} 21... Ke7 {[%clk
0:00:35.4]} 22. Rfe1+ {[%clk 0:01:36.9]} 22... Ne5 {[%clk 0:00:32.2]} 23. Rxe5+
{[%clk 0:01:33.3]} 23... Kd7 {[%clk 0:00:32.4]} 24. Bb5+ {[%clk 0:01:17.2]}
24... Bc6 {[%clk 0:00:29.7]} 25. Rd1+ {[%clk 0:01:15.4]} 25... Kc7 {[%clk
0:00:27.9]} 26. Rxd8 {[%clk 0:01:01.1]} 26... bxc3 {[%clk 0:00:25.6]} 27. Rc5+
{[%clk 0:00:49.6]} 27... Kb6 {[%clk 0:00:22.2]} 28. Rxf8 {[%clk 0:00:44.3]}
28... Rxf8 {[%clk 0:00:21]} 29. Rxc6+ {[%clk 0:00:43.1]} 29... Kxb5 {[%clk
0:00:19.3]} 30. Nd4+ {[%clk 0:00:42.9]} 30... Kb4 {[%clk 0:00:13.2]} 31. bxc3+
{[%clk 0:00:42.9]} 31... Ka3 {[%clk 0:00:13]} 32. Bd6+ {[%clk 0:00:40.3]} 32...
Bb4 {[%clk 0:00:06.8]} 33. Bxb4+ {[%clk 0:00:39.3]} 33... Kb2 {[%clk 0:00:06.3]}
34. Qc2+ {[%clk 0:00:38.9]} 34... Ka1 {[%clk 0:00:04.2]} 35. Qc1+ {[%clk
0:00:38.8]} 1-0

[Event "Late-Titled-Tuesday-Blitz-April-30-2024"]
[Site "Chess.com"]
[Date "2024.04.30"]
[Round "4"]
[White "Semyon_Khanin"]
[Black "Doomfist26"]
[Result "1-0"]
[WhiteElo "2878"]
[BlackElo "2631"]
[TimeControl "180+1"]
[EndTime "14:40:15 PDT"]
[Termination "Semyon_Khanin won by resignation"]

1. e4 {[%clk 0:03:00.9]} 1... e6 {[%clk 0:02:55.6]} 2. d4 {[%clk 0:03:00.8]}
2... d5 {[%clk 0:02:56.2]} 3. e5 {[%clk 0:03:01.5]} 3... c5 {[%clk 0:02:56.3]}
4. c3 {[%clk 0:03:02.2]} 4... Nc6 {[%clk 0:02:57]} 5. Nf3 {[%clk 0:03:02.8]}
5... Bd7 {[%clk 0:02:57.7]} 6. Na3 {[%clk 0:03:03.3]} 6... f6 {[%clk 0:02:57.8]}
7. Bb5 {[%clk 0:03:02.8]} 7... a6 {[%clk 0:02:55.7]} 8. Bxc6 {[%clk 0:03:02.6]}
8... Bxc6 {[%clk 0:02:56.6]} 9. O-O {[%clk 0:03:01.3]} 9... Qc7 {[%clk
0:02:55.7]} 10. Bf4 {[%clk 0:02:58.3]} 10... f5 {[%clk 0:02:55.6]} 11. dxc5
{[%clk 0:02:56.5]} 11... Bxc5 {[%clk 0:02:55]} 12. Nc2 {[%clk 0:02:56.6]} 12...
Ne7 {[%clk 0:02:53.9]} 13. Ncd4 {[%clk 0:02:56.5]} 13... Bd7 {[%clk 0:02:54.2]}
14. Ng5 {[%clk 0:02:48.5]} 14... Qb6 {[%clk 0:02:46.9]} 15. Be3 {[%clk
0:02:39.3]} 15... O-O {[%clk 0:02:41.9]} 16. b4 {[%clk 0:02:24.1]} 16... Bxd4
{[%clk 0:02:41.8]} 17. Bxd4 {[%clk 0:02:25]} 17... Qd8 {[%clk 0:02:41.6]} 18.
Bc5 {[%clk 0:02:24.4]} 18... h6 {[%clk 0:02:35.3]} 19. Nf3 {[%clk 0:02:22.2]}
19... Rf7 {[%clk 0:02:29.9]} 20. a4 {[%clk 0:02:21.2]} 20... Rc8 {[%clk
0:02:24]} 21. a5 {[%clk 0:02:21.1]} 21... Bb5 {[%clk 0:02:20.3]} 22. Re1 {[%clk
0:02:21.3]} 22... Nc6 {[%clk 0:02:20.9]} 23. h4 {[%clk 0:02:16.8]} 23... g5
{[%clk 0:02:19.6]} 24. hxg5 {[%clk 0:02:16.1]} 24... hxg5 {[%clk 0:02:20.3]} 25.
Qd2 {[%clk 0:02:13.9]} 25... Rg7 {[%clk 0:02:18.1]} 26. Nd4 {[%clk 0:02:10.9]}
26... Nxd4 {[%clk 0:02:16.7]} 27. cxd4 {[%clk 0:02:11.8]} 27... Rh7 {[%clk
0:02:04.3]} 28. g3 {[%clk 0:02:03]} 28... g4 {[%clk 0:01:59.3]} 29. Kg2 {[%clk
0:02:02.2]} 29... Kf7 {[%clk 0:01:51.1]} 30. Rh1 {[%clk 0:02:01.2]} 30... Qh8
{[%clk 0:01:07.8]} 31. Qg5 {[%clk 0:01:59.7]} 31... Re8 {[%clk 0:00:48.3]} 32.
Rxh7+ {[%clk 0:01:06.5]} 32... Qxh7 {[%clk 0:00:46.6]} 33. Qf6+ {[%clk
0:00:51.1]} 33... Kg8 {[%clk 0:00:45.7]} 34. Rh1 {[%clk 0:00:51.7]} 34... Qg7
{[%clk 0:00:45.9]} 35. Rh6 {[%clk 0:00:36.7]} 35... Qxf6 {[%clk 0:00:45.8]} 36.
exf6 {[%clk 0:00:37.2]} 36... Kf7 {[%clk 0:00:23.9]} 37. Be7 {[%clk 0:00:36.6]}
37... Rc8 {[%clk 0:00:24.4]} 38. Rh7+ {[%clk 0:00:36.6]} 38... Kg6 {[%clk
0:00:23.1]} 39. Rg7+ {[%clk 0:00:35]} 39... Kh6 {[%clk 0:00:23.3]} 40. Bd6
{[%clk 0:00:34.6]} 40... Be2 {[%clk 0:00:17.1]} 41. Bf4+ {[%clk 0:00:30.4]}
41... Kh5 {[%clk 0:00:17.3]} 42. Rg5+ {[%clk 0:00:30.6]} 42... Kh6 {[%clk
0:00:18]} 43. Rg8+ {[%clk 0:00:30.9]} 1-0

[Event "Late-Titled-Tuesday-Blitz-April-30-2024"]
[Site "Chess.com"]
[Date "2024.04.30"]
[Round "4"]
[White "Naoki"]
[Black "OparinGrigoriy"]
[Result "0-1"]
[WhiteElo "2617"]
[BlackElo "2981"]
[TimeControl "180+1"]
[EndTime "14:40:18 PDT"]
[Termination "OparinGrigoriy won by resignation"]

1. e4 {[%clk 0:02:49.9]} 1... d6 {[%clk 0:03:00.9]} 2. d4 {[%clk 0:02:48.9]}
2... Nf6 {[%clk 0:03:01.4]} 3. Nc3 {[%clk 0:02:48.8]} 3... Nbd7 {[%clk
0:03:01.5]} 4. Nf3 {[%clk 0:02:48.8]} 4... e5 {[%clk 0:03:02.1]} 5. Bc4 {[%clk
0:02:48.9]} 5... Be7 {[%clk 0:03:01.1]} 6. O-O {[%clk 0:02:48.9]} 6... O-O
{[%clk 0:03:01.3]} 7. Re1 {[%clk 0:02:47.2]} 7... c6 {[%clk 0:03:01.6]} 8. a4
{[%clk 0:02:47.8]} 8... Qc7 {[%clk 0:02:59.6]} 9. Ba2 {[%clk 0:02:47.4]} 9... h6
{[%clk 0:02:57.9]} 10. h3 {[%clk 0:02:45.8]} 10... Re8 {[%clk 0:02:58.3]} 11.
Be3 {[%clk 0:02:45.1]} 11... Bf8 {[%clk 0:02:57.7]} 12. dxe5 {[%clk 0:02:41.5]}
12... Nxe5 {[%clk 0:02:56.7]} 13. Nd2 {[%clk 0:02:33.2]} 13... Ng6 {[%clk
0:02:50.7]} 14. f4 {[%clk 0:02:31.8]} 14... Bd7 {[%clk 0:02:39.7]} 15. Qf3
{[%clk 0:02:22.3]} 15... Rad8 {[%clk 0:02:38.9]} 16. Rad1 {[%clk 0:02:18.3]}
16... Be6 {[%clk 0:02:33.7]} 17. Bxe6 {[%clk 0:02:10.6]} 17... fxe6 {[%clk
0:02:34.6]} 18. Qg3 {[%clk 0:02:05.1]} 18... Qf7 {[%clk 0:02:24.8]} 19. e5
{[%clk 0:01:39.4]} 19... Nh5 {[%clk 0:02:18.9]} 20. Qg4 {[%clk 0:01:27.5]} 20...
Nhxf4 {[%clk 0:02:18.9]} 21. exd6 {[%clk 0:01:24.3]} 21... Bxd6 {[%clk
0:02:14.9]} 22. Bxa7 {[%clk 0:01:09.8]} 22... Ne5 {[%clk 0:01:55.3]} 23. Qg3
{[%clk 0:01:09.5]} 23... Ned3 {[%clk 0:01:35.8]} 24. Rf1 {[%clk 0:00:43.5]}
24... Nxb2 {[%clk 0:01:35.6]} 25. Rb1 {[%clk 0:00:27.2]} 25... Be5 {[%clk
0:01:27.9]} 26. Nde4 {[%clk 0:00:22.8]} 26... Nxa4 {[%clk 0:01:19.9]} 27. Be3
{[%clk 0:00:17.1]} 27... Nxc3 {[%clk 0:01:17.3]} 28. Nxc3 {[%clk 0:00:16.2]}
28... Qg6 {[%clk 0:00:42.9]} 29. Bxf4 {[%clk 0:00:13.2]} 29... Qxg3 {[%clk
0:00:42.6]} 30. Bxg3 {[%clk 0:00:14.1]} 30... Bxc3 {[%clk 0:00:33]} 31. Rxb7
{[%clk 0:00:14.5]} 31... Rd2 {[%clk 0:00:33.6]} 32. Be1 {[%clk 0:00:12.1]} 32...
Bd4+ {[%clk 0:00:32.3]} 33. Kh1 {[%clk 0:00:11.3]} 33... Rxc2 {[%clk 0:00:32.1]}
34. Ba5 {[%clk 0:00:07.3]} 34... c5 {[%clk 0:00:31.7]} 35. Rff7 {[%clk
0:00:04.2]} 35... Ra8 {[%clk 0:00:29.3]} 36. Bb6 {[%clk 0:00:03]} 36... Ra1+
{[%clk 0:00:28.9]} 0-1

[Event "Late-Titled-Tuesday-Blitz-April-30-2024"]
[Site "Chess.com"]
[Date "2024.04.30"]
[Round "4"]
[White "Vincefm"]
[Black "Oleg_Papayan"]
[Result "0-1"]
[WhiteElo "2364"]
[BlackElo "2652"]
[TimeControl "180+1"]
[EndTime "14:40:24 PDT"]
[Termination "Oleg_Papayan won on time"]

1. e4 {[%clk 0:02:59.9]} 1... d5 {[%clk 0:03:00.5]} 2. exd5 {[%clk 0:02:58.1]}
2... Qxd5 {[%clk 0:03:01.4]} 3. Nc3 {[%clk 0:02:55.9]} 3... Qd8 {[%clk 0:03:02]}
4. d4 {[%clk 0:02:52.9]} 4... c6 {[%clk 0:03:02.6]} 5. Nf3 {[%clk 0:02:51.6]}
5... Bf5 {[%clk 0:03:03.2]} 6. Ne5 {[%clk 0:02:47.5]} 6... Nd7 {[%clk
0:03:01.5]} 7. Nc4 {[%clk 0:02:45.7]} 7... e6 {[%clk 0:02:59.6]} 8. a4 {[%clk
0:02:42.7]} 8... a5 {[%clk 0:02:56.8]} 9. Bd3 {[%clk 0:02:40.2]} 9... Bg6 {[%clk
0:02:49.4]} 10. O-O {[%clk 0:02:29.2]} 10... Nb6 {[%clk 0:02:48.4]} 11. Ne5
{[%clk 0:02:27.6]} 11... Qxd4 {[%clk 0:02:45.3]} 12. Nxg6 {[%clk 0:02:26.9]}
12... hxg6 {[%clk 0:02:46.2]} 13. Be3 {[%clk 0:02:21.7]} 13... Qh4 {[%clk
0:02:24.5]} 14. h3 {[%clk 0:02:21.1]} 14... Nc4 {[%clk 0:02:07.6]} 15. Bxc4
{[%clk 0:01:13.5]} 15... Qxc4 {[%clk 0:02:08.5]} 16. Qf3 {[%clk 0:01:01]} 16...
Nf6 {[%clk 0:02:01.8]} 17. Rad1 {[%clk 0:01:01.5]} 17... Bc5 {[%clk 0:01:45.5]}
18. Bg5 {[%clk 0:00:50.6]} 18... Be7 {[%clk 0:01:45.9]} 19. Bxf6 {[%clk
0:00:46.8]} 19... gxf6 {[%clk 0:01:32.8]} 20. b3 {[%clk 0:00:44.2]} 20... Qc5
{[%clk 0:01:25.4]} 21. Ne4 {[%clk 0:00:43.7]} 21... Qf5 {[%clk 0:01:22.3]} 22.
Qe3 {[%clk 0:00:42.8]} 22... Kf8 {[%clk 0:01:14.8]} 23. Rd6 {[%clk 0:00:41.9]}
23... Bxd6 {[%clk 0:01:11.2]} 24. Nxd6 {[%clk 0:00:40.5]} 24... Qe5 {[%clk
0:01:01.5]} 25. Qxe5 {[%clk 0:00:37.8]} 25... fxe5 {[%clk 0:01:02.4]} 26. Nxb7
{[%clk 0:00:37.6]} 26... Ke7 {[%clk 0:00:55.3]} 27. Re1 {[%clk 0:00:35.7]} 27...
f6 {[%clk 0:00:55.6]} 28. Nc5 {[%clk 0:00:32]} 28... g5 {[%clk 0:00:52.3]} 29.
Nb7 {[%clk 0:00:25.4]} 29... Ra7 {[%clk 0:00:47.6]} 30. Nc5 {[%clk 0:00:24.1]}
30... Rd8 {[%clk 0:00:48.3]} 31. g3 {[%clk 0:00:18.6]} 31... Rd2 {[%clk
0:00:46.7]} 32. f4 {[%clk 0:00:17.3]} 32... Rxc2 {[%clk 0:00:39.8]} 33. Ne4
{[%clk 0:00:11.6]} 33... gxf4 {[%clk 0:00:40]} 34. gxf4 {[%clk 0:00:10.2]} 34...
exf4 {[%clk 0:00:40.9]} 35. h4 {[%clk 0:00:09.6]} 35... e5 {[%clk 0:00:34.7]}
36. h5 {[%clk 0:00:09.6]} 36... Ke6 {[%clk 0:00:35.2]} 37. h6 {[%clk 0:00:01.4]}
37... Rh7 {[%clk 0:00:34.2]} 0-1

[Event "Late-Titled-Tuesday-Blitz-April-30-2024"]
[Site "Chess.com"]
[Date "2024.04.30"]
[Round "4"]
[White "rdarruda"]
[Black "KorolDimitriy75"]
[Result "1-0"]
[WhiteElo "2544"]
[BlackElo "2351"]
[TimeControl "180+1"]
[EndTime "14:40:24 PDT"]
[Termination "rdarruda won on time"]

1. d4 {[%clk 0:02:49]} 1... Nf6 {[%clk 0:02:59.7]} 2. Nf3 {[%clk 0:02:48.6]}
2... g6 {[%clk 0:02:59.5]} 3. Nc3 {[%clk 0:02:48.4]} 3... d5 {[%clk 0:02:59.2]}
4. Bg5 {[%clk 0:02:47.7]} 4... Bg7 {[%clk 0:02:59.5]} 5. Bxf6 {[%clk 0:02:47.9]}
5... Bxf6 {[%clk 0:03:00.4]} 6. e4 {[%clk 0:02:47.7]} 6... dxe4 {[%clk
0:03:00.7]} 7. Nxe4 {[%clk 0:02:48]} 7... Bg7 {[%clk 0:03:01.6]} 8. Bc4 {[%clk
0:02:47.6]} 8... O-O {[%clk 0:03:01.2]} 9. O-O {[%clk 0:02:47.3]} 9... Nd7
{[%clk 0:02:47.7]} 10. c3 {[%clk 0:02:47]} 10... e6 {[%clk 0:02:35.5]} 11. Qe2
{[%clk 0:02:45.6]} 11... c6 {[%clk 0:02:35.5]} 12. Rad1 {[%clk 0:02:41.2]} 12...
Qc7 {[%clk 0:02:33.6]} 13. h4 {[%clk 0:02:37.7]} 13... c5 {[%clk 0:02:08]} 14.
d5 {[%clk 0:02:24.4]} 14... exd5 {[%clk 0:02:07.6]} 15. Bxd5 {[%clk 0:02:25.3]}
15... Nb6 {[%clk 0:02:07.6]} 16. Bb3 {[%clk 0:02:17.6]} 16... Bg4 {[%clk
0:02:03.2]} 17. Nd6 {[%clk 0:02:07.1]} 17... Rad8 {[%clk 0:01:12.5]} 18. Nc4
{[%clk 0:02:06.4]} 18... Rfe8 {[%clk 0:01:04.3]} 19. Rxd8 {[%clk 0:02:04.6]}
19... Qxd8 {[%clk 0:01:03.4]} 20. Rd1 {[%clk 0:01:46.7]} 20... Qb8 {[%clk
0:00:41.5]} 21. Qd3 {[%clk 0:01:36.9]} 21... Bf5 {[%clk 0:00:29.1]} 22. Qd6
{[%clk 0:01:28.9]} 22... Nxc4 {[%clk 0:00:20.6]} 23. Qxb8 {[%clk 0:01:27.5]}
23... Rxb8 {[%clk 0:00:21.1]} 24. Bxc4 {[%clk 0:01:27.9]} 24... b5 {[%clk
0:00:16.7]} 25. Bd5 {[%clk 0:01:27.3]} 25... Bf6 {[%clk 0:00:14.4]} 26. Ng5
{[%clk 0:01:21.3]} 26... Bxg5 {[%clk 0:00:11.9]} 27. hxg5 {[%clk 0:01:22.2]}
27... Kg7 {[%clk 0:00:09.6]} 28. f3 {[%clk 0:01:10.2]} 28... Rd8 {[%clk
0:00:08.6]} 29. Bb3 {[%clk 0:01:04.4]} 29... Rxd1+ {[%clk 0:00:07.4]} 30. Bxd1
{[%clk 0:01:05.3]} 30... f6 {[%clk 0:00:05.6]} 31. f4 {[%clk 0:01:02.1]} 31...
fxg5 {[%clk 0:00:04]} 32. fxg5 {[%clk 0:01:03]} 32... h6 {[%clk 0:00:04.8]} 33.
gxh6+ {[%clk 0:01:03.4]} 33... Kxh6 {[%clk 0:00:05.7]} 34. b4 {[%clk 0:01:03.4]}
34... cxb4 {[%clk 0:00:04.1]} 35. cxb4 {[%clk 0:01:04.3]} 35... Kg5 {[%clk
0:00:03.7]} 36. Kf2 {[%clk 0:01:04.5]} 36... Kf4 {[%clk 0:00:03.5]} 37. Bf3
{[%clk 0:01:04.6]} 37... Be6 {[%clk 0:00:02.9]} 38. a3 {[%clk 0:01:02.5]} 38...
Bc4 {[%clk 0:00:02.4]} 39. g3+ {[%clk 0:01:02]} 39... Ke5 {[%clk 0:00:02.7]} 40.
Ke3 {[%clk 0:01:02.9]} 40... g5 {[%clk 0:00:02.9]} 41. Bc6 {[%clk 0:01:01.4]}
41... Bf1 {[%clk 0:00:02.5]} 42. Be8 {[%clk 0:01:01.5]} 42... Bc4 {[%clk
0:00:02.5]} 43. Bh5 {[%clk 0:01:00.6]} 43... Bf1 {[%clk 0:00:02.3]} 44. Bf3
{[%clk 0:01:00.9]} 44... Bc4 {[%clk 0:00:02.1]} 45. Bc6 {[%clk 0:01:01.2]} 45...
Bf1 {[%clk 0:00:02.1]} 46. Kf3 {[%clk 0:01:01.7]} 46... Kd4 {[%clk 0:00:01.3]}
47. Kg4 {[%clk 0:00:55.8]} 47... Kc3 {[%clk 0:00:01.3]} 48. Kxg5 {[%clk
0:00:56.7]} 48... Kb3 {[%clk 0:00:01.3]} 49. Kf6 {[%clk 0:00:57.6]} 49... Kxa3
{[%clk 0:00:01.1]} 50. g4 {[%clk 0:00:57.7]} 50... Kxb4 {[%clk 0:00:00.9]} 51.
g5 {[%clk 0:00:58.6]} 1-0

[Event "Late-Titled-Tuesday-Blitz-April-30-2024"]
[Site "Chess.com"]
[Date "2024.04.30"]
[Round "4"]
[White "Polish_fighter3000"]
[Black "platy3"]
[Result "1-0"]
[WhiteElo "3080"]
[BlackElo "2873"]
[TimeControl "180+1"]
[EndTime "14:40:25 PDT"]
[Termination "Polish_fighter3000 won by resignation"]

1. e4 {[%clk 0:03:00.9]} 1... c5 {[%clk 0:02:53.6]} 2. Nf3 {[%clk 0:03:00.6]}
2... d6 {[%clk 0:02:53.3]} 3. d4 {[%clk 0:02:57.7]} 3... cxd4 {[%clk 0:02:54.2]}
4. Nxd4 {[%clk 0:02:58]} 4... Nf6 {[%clk 0:02:54.7]} 5. Nc3 {[%clk 0:02:54.9]}
5... a6 {[%clk 0:02:55.1]} 6. Bd3 {[%clk 0:02:51.4]} 6... e6 {[%clk 0:02:53.7]}
7. b3 {[%clk 0:02:42.4]} 7... Nc6 {[%clk 0:02:43.4]} 8. Nxc6 {[%clk 0:02:40.9]}
8... bxc6 {[%clk 0:02:44.3]} 9. Bb2 {[%clk 0:02:39.6]} 9... Be7 {[%clk
0:02:44.2]} 10. O-O {[%clk 0:02:34.8]} 10... O-O {[%clk 0:02:42.8]} 11. f4
{[%clk 0:02:32]} 11... d5 {[%clk 0:02:38]} 12. Kh1 {[%clk 0:02:30]} 12... a5
{[%clk 0:02:37.1]} 13. Qe2 {[%clk 0:02:27.4]} 13... d4 {[%clk 0:02:26.6]} 14.
Na4 {[%clk 0:02:16.2]} 14... c5 {[%clk 0:02:26.6]} 15. Rac1 {[%clk 0:01:41.7]}
15... Bb7 {[%clk 0:02:24.8]} 16. c3 {[%clk 0:01:40.9]} 16... c4 {[%clk 0:02:18]}
17. Bxc4 {[%clk 0:01:16.1]} 17... Nxe4 {[%clk 0:02:10.3]} 18. cxd4 {[%clk
0:01:11.3]} 18... Bd6 {[%clk 0:02:03.8]} 19. Nc5 {[%clk 0:01:03.5]} 19... Bxc5
{[%clk 0:01:40.5]} 20. dxc5 {[%clk 0:01:04.4]} 20... Qh4 {[%clk 0:01:40.7]} 21.
Kg1 {[%clk 0:00:59.2]} 21... Rac8 {[%clk 0:01:38.4]} 22. c6 {[%clk 0:00:25.3]}
22... Bxc6 {[%clk 0:00:47.7]} 23. Ba6 {[%clk 0:00:24.6]} 23... f5 {[%clk
0:00:48.4]} 24. Qe3 {[%clk 0:00:17]} 24... h6 {[%clk 0:00:26.3]} 25. Rc4 {[%clk
0:00:11.1]} 25... Bd7 {[%clk 0:00:17.3]} 26. Bxc8 {[%clk 0:00:10.9]} 26... Bxc8
{[%clk 0:00:18.2]} 27. Qd4 {[%clk 0:00:08.2]} 27... Qg4 {[%clk 0:00:16.1]} 28.
Rc7 {[%clk 0:00:07]} 28... Nf6 {[%clk 0:00:14.5]} 29. Rf3 {[%clk 0:00:06.9]}
29... Qh5 {[%clk 0:00:08.2]} 30. Qc4 {[%clk 0:00:06.5]} 30... Bd7 {[%clk
0:00:06.7]} 31. Bxf6 {[%clk 0:00:05.9]} 1-0

[Event "Late-Titled-Tuesday-Blitz-April-30-2024"]
[Site "Chess.com"]
[Date "2024.04.30"]
[Round "4"]
[White "ArrestingPieces"]
[Black "Andrii_Prydun"]
[Result "1-0"]
[WhiteElo "2520"]
[BlackElo "2363"]
[TimeControl "180+1"]
[EndTime "14:40:25 PDT"]
[Termination "ArrestingPieces won by checkmate"]

1. e4 {[%clk 0:03:00.9]} 1... d5 {[%clk 0:02:52.2]} 2. exd5 {[%clk 0:02:50.2]}
2... Qxd5 {[%clk 0:02:53.1]} 3. Nc3 {[%clk 0:02:50]} 3... Qd6 {[%clk 0:02:47.9]}
4. d4 {[%clk 0:02:50.2]} 4... c6 {[%clk 0:02:30.8]} 5. Nf3 {[%clk 0:02:49.9]}
5... Nf6 {[%clk 0:02:18.3]} 6. g3 {[%clk 0:02:47.6]} 6... Bg4 {[%clk 0:02:14]}
7. Bg2 {[%clk 0:02:36.7]} 7... Nbd7 {[%clk 0:02:12.9]} 8. O-O {[%clk 0:02:36.7]}
8... e6 {[%clk 0:02:11.7]} 9. h3 {[%clk 0:02:36.5]} 9... Bxf3 {[%clk 0:02:10.1]}
10. Bxf3 {[%clk 0:02:36.4]} 10... g6 {[%clk 0:02:01.7]} 11. Bf4 {[%clk 0:02:28]}
11... Qe7 {[%clk 0:01:58.5]} 12. Re1 {[%clk 0:02:17.6]} 12... O-O-O {[%clk
0:01:51.4]} 13. Qe2 {[%clk 0:02:14.5]} 13... Nb6 {[%clk 0:01:41.3]} 14. a4
{[%clk 0:01:53.1]} 14... a5 {[%clk 0:01:33.3]} 15. Be5 {[%clk 0:01:37.2]} 15...
Bg7 {[%clk 0:01:32.7]} 16. Ne4 {[%clk 0:01:20.2]} 16... Rhg8 {[%clk 0:01:21.9]}
17. Nc5 {[%clk 0:01:16.8]} 17... Nfd5 {[%clk 0:01:19.3]} 18. c3 {[%clk 0:00:47]}
18... Bxe5 {[%clk 0:01:10.8]} 19. Qxe5 {[%clk 0:00:46.8]} 19... Rge8 {[%clk
0:00:59]} 20. Qe2 {[%clk 0:00:31.3]} 20... h5 {[%clk 0:00:56.4]} 21. h4 {[%clk
0:00:30.5]} 21... Rh8 {[%clk 0:00:50.4]} 22. b4 {[%clk 0:00:21.9]} 22... Nxc3
{[%clk 0:00:47]} 23. Qd3 {[%clk 0:00:21.6]} 23... axb4 {[%clk 0:00:44.3]} 24. a5
{[%clk 0:00:15.4]} 24... Qxc5 {[%clk 0:00:43.8]} 25. axb6 {[%clk 0:00:15.6]}
25... Qxb6 {[%clk 0:00:40.8]} 26. Qe3 {[%clk 0:00:08.5]} 26... Kb8 {[%clk
0:00:32.6]} 27. Qf4+ {[%clk 0:00:08.3]} 27... Qc7 {[%clk 0:00:06.7]} 28. Ra8+
{[%clk 0:00:08.3]} 28... Kxa8 {[%clk 0:00:07.3]} 29. Qxc7 {[%clk 0:00:09]} 29...
Nd5 {[%clk 0:00:02.7]} 30. Ra1# {[%clk 0:00:08.7]} 1-0